Cogmind - Beta 13 @@@ ROGUE MODE // 2024.04.08 @ 16:51:50 Player: SpaceWalrus Result: Destroyed by Y-45 Defender with Beam Rifle Performance ------------- Evolutions (1) 500 Regions Visited (4) 800 Robots Destroyed (73) 365 Value Destroyed (1397) 1397 Prototype IDs (6) 120 Alien Tech Used (0) 0 Bonus (121) 121 TOTAL SCORE: 3303 Bonus ------- High Alert Combat Kills 121 Cogmind --------- Core Integrity 0/400 Matter 295/300 Energy 125/125 System Corruption 1% Temperature Cool (82) Movement Walking (120) Location -9/Mines Parts ------- > --- POWER (1) -------- Light Ion Engine > --- PROPULSION (3) --- Aluminum Leg Aluminum Leg VSS Leg > --- UTILITY (3) ------ Medium Storage Unit Signal Interpreter Hacking Suite > --- WEAPON (2) ------- Medium Laser > --- INVENTORY (10) --- Advanced Targeting Computer ECM Suite Light Armor Plating Thief Drone Bay (0/3) Improved EM Shotgun Light Assault Rifle Light Assault Rifle Scythe Peak State ------------ > --- POWER ------------ Cooled Ion Engine > --- PROPULSION ------- VSS Leg VSS Leg VSS Leg > --- UTILITY ---------- Signal Interpreter Hacking Suite Thief Drone Bay > --- WEAPON ----------- Improved EM Shotgun Heavy Assault Rifle > --- INVENTORY -------- Light Nuclear Core VSS Leg Medium Storage Unit Advanced Targeting Computer Heavy EM Pulse Gun [Rating: 29] Favorites ----------- Power Cooled Ion Engine Engine Cooled Ion Engine Power Core Light Nuclear Core Propulsion Aluminum Leg Leg Aluminum Leg Hover Unit Hover Unit Flight Unit Improved Flight Unit Utility Signal Interpreter Device Seismic Detector Storage Medium Storage Unit Processor Signal Interpreter Hackware Hacking Suite Weapon Medium Laser Energy Gun Medium Laser Ballistic Gun Heavy Assault Rifle Launcher Grenade Launcher Slashing Weapon Scythe Build | -11 -10 -10 -9 -9 ------- Run | Yrd Mat Min Mat Min Slots Evolved 2 | . . . 2 . Power . | . . . . . Propulsion 1 | . . . 1 . Utility 1 | . . . 1 . Weapon . | . . . . . Parts Attached 68 | 9 18 2 37 2 Power 13 | 2 5 . 5 1 Engine 9 | 2 3 . 3 1 Core 4 | . 2 . 2 . Reactor . | . . . . . Propulsion 22 | 2 6 . 14 . Treads . | . . . . . Leg 13 | 2 4 . 7 . Wheel . | . . . . . Hover 8 | . 2 . 6 . Flight 1 | . . . 1 . Utility 13 | 3 4 2 4 . Device 7 | 2 2 2 1 . Storage 4 | 1 1 . 2 . Processor 1 | . 1 . . . Hackware 1 | . . . 1 . Protection . | . . . . . Artifact . | . . . . . Weapon 20 | 2 3 . 14 1 Energy Gun 11 | 2 2 . 6 1 Energy Cannon . | . . . . . Ballistic Gun 4 | . 1 . 3 . Ballistic Cannon . | . . . . . Launcher 2 | . . . 2 . Special Weapon . | . . . . . Impact Weapon . | . . . . . Slashing Weapon 3 | . . . 3 . Piercing Weapon . | . . . . . Special Melee Weapon . | . . . . . Unidentified Prototypes 4 | . . 1 3 . Parts Lost 13 | . 2 . 9 2 Power 2 | . . . 1 1 Propulsion 4 | . . . 4 . Utility 1 | . 1 . . . Weapon 6 | . 1 . 4 1 Highest Loss Streak 4 | . 2 . 4 1 To Critical Strikes . | . . . . . Average Slot Usage (%) 96 | . 98 100 94 95 Engine 8 | . 10 . 7 5 Core 3 | . 3 14 2 1 Leg 22 | . 21 . 21 33 Hover 7 | . 7 28 9 . Device 8 | . 17 14 4 . Storage 6 | . 6 . 6 11 Processor 8 | . 3 14 11 11 Hackware 7 | . . . 10 11 Energy Gun 13 | . 23 14 6 11 Ballistic Gun 5 | . 3 14 8 . Launcher 1 | . . . 3 . Slashing Weapon 2 | . . . 1 10 Naked Turns . | . . . . . Heaviest Build 25 | 14 16 12 25 20 Greatest Support 36 | 20 20 12 36 32 Greatest Overweight (x) 4 | . 1 . 4 . Average Overweight (x) . | . . . . . Largest Inventory Capacity 10 | 8 8 5 10 10 Average Capacity 7 | 7 6 5 7 10 Most Carried 9 | 5 7 5 9 9 Average Carried 5 | 2 4 4 5 7 Final Capacity 10 | 5 5 5 10 10 Final Carried 8 | 3 5 5 5 8 Class Distribution -------------------- 55% | Scavenger-Mutant 44% | Mutant Dominant Class ---------------- Scavenger-Mutant | -10/Materials Scavenger-Mutant | -10/Mines Mutant | -9/Materials Scavenger-Mutant | -9/Mines Resources | -11 -10 -10 -9 -9 ----------- Run | Yrd Mat Min Mat Min Matter Collected 1345 | 280 197 12 775 81 Remotely . | . . . . . Salvage Created 2006 | 257 470 . 1142 137 Parts 165 | 21 41 . 94 9 Haulers Intercepted 5 | . 2 . 3 . Recyclers Shooed . | . . . . . Parts Field Recycled . | . . . . . Retrieved Matter . | . . . . . Parts Self-Destructed . | . . . . . Prevented . | . . . . . Kills | -11 -10 -10 -9 -9 ------- Run | Yrd Mat Min Mat Min Combat Hostiles Destroyed 41 | . 11 . 27 3 Guns 28 | . 10 . 15 3 AOE 12 | . . . 12 . Classes Destroyed 10 | 2 6 . 2 . Worker 2 | . . . 2 . Builder 6 | . 1 . 4 1 Tunneler 8 | 8 . . . . Hauler 5 | . 2 . 3 . Recycler 2 | 1 . . . 1 Operator 2 | . 1 . 1 . Watcher 7 | . 3 . 4 . Swarmer 16 | . 6 . 7 3 Grunt 18 | . 5 . 13 . Sentry 7 | . . . 7 . Best Kill Streak 7 | 3 4 . 7 3 Combat Bots Only 4 | . 3 . 4 2 Max Kills in Single Turn 3 | 1 1 . 3 1 Gunslinging . | . . . . . Exploded 3 | . . . 3 . Melee . | . . . . . Uniques/NPCs Destroyed . | . . . . . Combat | -11 -10 -10 -9 -9 -------- Run | Yrd Mat Min Mat Min Hostile Shots Fired 280 | . 84 . 149 47 Missed 85 | . 24 . 47 14 Damage Taken 2335 | . 577 . 1376 382 Core 495 | . 89 . 298 108 Absorbed by Shields . | . . . . . Core Remaining (%) 82 | 100 . 64 . . Volleys Fired 203 | 22 53 . 111 17 Largest 2 | 2 2 . 2 2 Hottest 115 | 90 115 . 68 106 Shots Fired 319 | 43 96 . 161 19 Gun 296 | 43 96 . 138 19 Cannon . | . . . . . Launcher 23 | . . . 23 . Special . | . . . . . Kinetic 105 | . 7 . 98 . Thermal 151 | 43 89 . . 19 Explosive 23 | . . . 23 . Electromagnetic 40 | . . . 40 . Robot Hit Streak 14 | 14 8 . 7 7 Robot Miss Streak 5 | 1 5 . 4 2 Penetration Max . | . . . . . Secondary Targets 3 | . 2 . 1 . Max Gunslinging Chain 1 | . 1 . 1 . Shots Hit Robots 193 | 29 58 . 89 17 Core Hits 100 | 10 26 . 59 5 Critical Kills 1 | . . . 1 . Critical Parts Destroyed . | . . . . . Critical Strikes 8 | 1 5 . 1 1 Burn 7 | 1 5 . . 1 Destroy 1 | . . . 1 . Melee Attacks 9 | . . . 4 5 Impact . | . . . . . Slashing 9 | . . . 4 5 Piercing . | . . . . . Sneak Attacks 4 | . . . 2 2 Combat Hostiles . | . . . . . Follow-up Attacks . | . . . . . Damage Inflicted 4064 | 343 738 . 2594 389 Guns 2413 | 343 738 . 1165 167 Cannons . | . . . . . Explosions 1236 | . . . 1236 . Melee 415 | . . . 193 222 Ramming . | . . . . . Kinetic 852 | . 40 . 812 . Thermal 1208 | 343 698 . . 167 Explosive 1236 | . . . 1236 . Electromagnetic 353 | . . . 353 . Impact . | . . . . . Slashing 415 | . . . 193 222 Piercing . | . . . . . Highest Corruption 1 | . . . 1 1 Average Corruption 1 | . . . 1 1 Corruption Purged . | . . . . . Corruption Blocked . | . . . . . Effects 11 | . . . 7 4 Message Errors 1 | . . . . 1 Matter Fused 4 | . . . 4 . Heat Flow Errors 2 | . . . . 2 Energy Discharges 1 | . . . 1 . Data Loss (minor) 3 | . . . 2 1 Overload Shots . | . . . . . Overflow Damage 173 | . . . 114 59 Projectiles . | . . . . . Explosions 64 | . . . 64 . Melee 109 | . . . 50 59 Knockbacks . | . . . . . Impact . | . . . . . Kinetic . | . . . . . Secondary . | . . . . . Self-Inflicted Damage 107 | . . . 107 . Shots 4 | . . . 4 . Rammed . | . . . . . Targets Rammed . | . . . . . Kicked . | . . . . . Crushed . | . . . . . Highest Temperature 354 | 100 354 . 49 207 Average Temperature 71 | 36 98 . 16 73 Received Heat Transfer 720 | . 153 . 444 123 Effects 1 | . 1 . . . Damage (minor) 1 | . 1 . . . Siege Activations . | . . . . . Robots Corrupted . | . . . . . Combat Hostiles . | . . . . . Parts Fried 1 | . . . 1 . Impact Corruptions . | . . . . . Robots Melted 2 | . 2 . . . Combat Hostiles 1 | . 1 . . . Parts Melted 11 | 2 7 . . 2 Heat Transferred 3771 | 967 2286 . . 518 Parts Sabotaged . | . . . . . Parts Stolen . | . . . . . Parts Stripped . | . . . . . Power Chain Reactions . | . . . . . Alert | -11 -10 -10 -9 -9 ------- Run | Yrd Mat Min Mat Min Peak Influence 721 | 45 198 91 721 352 Initial 237 | . 29 76 35 237 Average 259 | 14 130 76 380 299 Maximum Alert Level 3 | . . . 3 1 Low Security (%) 53 | 100 100 100 28 . Level 1 29 | . . . 34 100 Level 2 9 | . . . 20 . Level 3 8 | . . . 17 . Level 4 . | . . . . . Level 5 . | . . . . . High Security . | . . . . . Max Security . | . . . . . Squads Dispatched 8 | . 2 . 6 . Investigation 4 | . 1 . 3 . Extermination . | . . . . . Reinforcement 4 | . 1 . 3 . Assault . | . . . . . Garrison . | . . . . . Intercept . | . . . . . Searches Triggered . | . . . . . Construction Impeded . | . . . . . Haulers Reinforced . | . . . . . Active Scanning Responses . | . . . . . Cargo Convoy Interrupts . | . . . . . Stealth | -11 -10 -10 -9 -9 --------- Run | Yrd Mat Min Mat Min Distress Signals 5 | . . . 5 . Communications Jammed . | . . . . . Distress Signals . | . . . . . Times Spotted 63 | . 19 1 37 6 Peak Tracking Total 5 | . 5 2 5 3 Tactical Retreats 6 | . . . 4 2 Traps | -11 -10 -10 -9 -9 ------- Run | Yrd Mat Min Mat Min Traps Triggered 2 | . 1 . 1 . Indirectly . | . . . . . Trap Hack Attempts . | . . . . . Triggered . | . . . . . Disarmed . | . . . . . Reprogrammed . | . . . . . Reused . | . . . . . Traps Extracted . | . . . . . Installed . | . . . . . Triggered . | . . . . . Machines | -11 -10 -10 -9 -9 ---------- Run | Yrd Mat Min Mat Min Machines Disabled 3 | . 1 . 2 . Max in Single Turn 1 | . 1 . 1 . Machines Repaired . | . . . . . Machines Dismantled . | . . . . . Machines Sabotaged . | . . . . . Overloaded Fab Kills . | . . . . . Hacking | -11 -10 -10 -9 -9 --------- Run | Yrd Mat Min Mat Min Machines Accessed 10 | . 3 1 6 . Terminals 9 | . 3 . 6 . Fabricators . | . . . . . Repair Stations . | . . . . . Recycling Units . | . . . . . Scanalyzers . | . . . . . Garrison Access . | . . . . . Total Hacks 30 | . 7 1 22 . Successful 15 | . 2 1 12 . Failed 15 | . 5 . 10 . Catastrophic . | . . . . . Database Lockouts . | . . . . . Manual . | . . . . . Terminals 29 | . 7 . 22 . Fabricators . | . . . . . Repair Stations . | . . . . . Recycling Units . | . . . . . Scanalyzers . | . . . . . Garrison Access . | . . . . . Terminal Hacks 15 | . 2 1 12 . Record 4 | . . . 4 . Prototype ID Bank 1 | . . . 1 . Open Door 1 | . . 1 . . Emergency Access Points 2 | . . . 2 . Alert Level 3 | . . . 3 . Locate Traps 1 | . . . 1 . Maintenance Status 1 | . 1 . . . Recall Investigation 1 | . 1 . . . Hauler Manifests 1 | . . . 1 . Fabricator Hacks . | . . . . . Repair Station Hacks . | . . . . . Recycling Unit Hacks . | . . . . . Scanalyzer . | . . . . . Garrison Access Hacks . | . . . . . Unauthorized Hacks . | . . . . . Terminals . | . . . . . Fabricators . | . . . . . Repair Stations . | . . . . . Recycling Units . | . . . . . Scanalyzers . | . . . . . Garrison Access . | . . . . . Data Cores Recovered . | . . . . . Used . | . . . . . Hacking Detections 7 | . 2 . 5 . Full Trace Events 3 | . . . 3 . Feedback Events 1 | . . . 1 . Corruption 1 | . . . 1 . Feedback Blocked . | . . . . . Robot Schematics Acquired . | . . . . . Robots Built . | . . . . . Authchips . | . . . . . Time . | . . . . . Total Robot Build Rating . | . . . . . Part Schematics Acquired . | . . . . . Parts Built . | . . . . . Authchips . | . . . . . Time . | . . . . . Total Part Build Rating . | . . . . . Parts Repaired . | . . . . . Time . | . . . . . Parts Recycled . | . . . . . Recycled Matter . | . . . . . Retrieved Matter . | . . . . . Retrieved Components . | . . . . . Parts Scanalyzed . | . . . . . Part Schematics Acquired . | . . . . . Parts Damaged . | . . . . . Bothacking | -11 -10 -10 -9 -9 ------------ Run | Yrd Mat Min Mat Min Used RIF Installer . | . . . . . Robots Hacked . | . . . . . Non-combat . | . . . . . Combat . | . . . . . Robot Hacks Applied . | . . . . . Relay Couplers Released . | . . . . . Fabnet Peak Effective % . | . . . . . Robots Rewired . | . . . . . Allies Hacked . | . . . . . Hacks Repelled . | . . . . . Allies | -11 -10 -10 -9 -9 -------- Run | Yrd Mat Min Mat Min Total Allies . | . . . . . Largest Group . | . . . . . Highest-Rated Group . | . . . . . Highest-Rated Ally . | . . . . . Total Orders . | . . . . . Ally Attacks 10 | . . . 10 . Total Damage 23 | . . . 23 . Kills . | . . . . . Allies Corrupted . | . . . . . Allies Melted . | . . . . . Intel | -11 -10 -10 -9 -9 ------- Run | Yrd Mat Min Mat Min Robot Analysis Total . | . . . . . Derelict Logs Recovered 1 | . . . . 1 Drone Launches 6 | . . . 6 . Drone Recoveries 3 | . . . 3 . Exploration | -11 -10 -10 -9 -9 ------------- Run | Yrd Mat Min Mat Min Turns Passed 2599 | 218 751 63 1218 349 Spaces Moved 2006 | 138 501 103 1014 250 Core 48 | 46 . . 2 . Treads . | . . . . . Legs 1137 | 92 228 . 567 250 Wheels . | . . . . . Hover 821 | . 273 103 445 . Flight . | . . . . . Fastest Speed 50 | 50 56 56 52 110 Average Speed 87 | 96 85 56 82 116 Slowest Speed 250 | 120 120 56 250 120 Overloaded Moves . | . . . . . Propulsion Burnouts . | . . . . . Robots Hopped . | . . . . . Cave-ins Triggered . | . . . . . Exploration Rate (%) 38 | 6 53 21 63 51 Regions Visited 4 Branch Regions 2 Pre-discovered Areas . | . . . . . Known Exits Taken 3 | . 1 1 1 . Unknown Exits Taken 1 | 1 . . . . Scrap Searched 2 | . . 1 . 1 Spaces Dug . | . . . . . Terrain Destroyed 109 | . . . 109 . Melee . | . . . . . Projectile . | . . . . . AOE 109 | . . . 109 . Terrain Rammed . | . . . . . Walls Destroyed . | . . . . . Machines Disabled . | . . . . . Actions | -11 -10 -10 -9 -9 --------- Run | Yrd Mat Min Mat Min Total 2523 | 178 731 107 1227 280 Wait 154 | . 127 1 24 2 Move 2002 | 137 500 102 1013 250 Hop . | . . . . . Pick Up 52 | 9 18 1 20 4 Fast Attach 8 | 2 . . 6 . Attach 27 | 5 7 . 14 1 Detach 1 | . 1 . . . Swap 33 | 2 11 2 17 1 Drop 31 | 1 14 1 15 . Fire 203 | 22 53 . 111 17 Melee 9 | . . . 4 5 Ram . | . . . . . Kick . | . . . . . Crush . | . . . . . Escape Stasis . | . . . . . Rewire 3 | . . . 3 . Trap . | . . . . . Miscellaneous . | . . . . . Route ------- -11/Scrapyard -10/Materials (discovered 3 exits: *Mat / *Min / *Sub) -10/Mines -9/Materials (discovered 3 exits: *Mat x2 / *Min) -9/Mines (discovered 1 exit: *Mat) History --------- Turn | Location | Event 4 | -11/Scrapyard | Discovered new exit (range 16) 219 | -11/Scrapyard | Entered Materials 249 | -10/Materials | Discovered new exit (range 5) 316 | -10/Materials | Build established: Mutant 795 | -10/Materials | Discovered new exit (range 9) 799 | -10/Materials | Identified exit to Subcaves 831 | -10/Materials | Discovered new exit (range 15) 838 | -10/Materials | Identified exit to Materials 969 | -10/Materials | Identified exit to Mines 970 | -10/Materials | Entered Mines 975 | -10/Mines | Found the Drone Emporium 977 | -10/Mines | Met a Derelict bent on vengeance 981 | -10/Mines | Found Prototype Device 982 | -10/Mines | Identified Thief Drone Bay 1001 | -10/Mines | Found a hidden stash of uninstalled traps 1007 | -10/Mines | Discovered exit to Materials (range 9) 1012 | -10/Mines | Assembled infested the area 1016 | -10/Mines | Received a Rocket Launcher from a helpful Derelict 1033 | -10/Mines | Entered Materials 1033 | -9/Materials | Evolved 2 slots: Propulsion x1, Utility x1 1067 | -9/Materials | Build established: Scavenger-Mutant 1692 | -9/Materials | Discovered new exit (range 6) 1695 | -9/Materials | Identified exit to Materials 1735 | -9/Materials | Build established: Mutant 1739 | -9/Materials | Discovered new exit (range 7) 1743 | -9/Materials | Identified exit to Mines 1954 | -9/Materials | Discovered exit to Materials (range 11) 1980 | -9/Materials | Core integrity fell below 50% 2069 | -9/Materials | Lost 4 parts (1p2n1w) 2251 | -9/Materials | Entered Mines 2257 | -9/Mines | Learned Materials security intel 2383 | -9/Mines | Build established: Scavenger-Mutant 2566 | -9/Mines | Discovered exit to Materials (range 5) 2586 | -9/Mines | Core integrity fell below 20% 2600 | -9/Mines | Destroyed by Y-45 Defender with Beam Rifle Last Messages --------------- Destroyed Lgt. Ion Engine. Destroyed Tractor Beam. R-06 Scavenger destroyed. Acquired 21 matter. Sneak attack on U-05 Engineer. U-05 Engineer destroyed. Flight Unit melted. S-10 Pest destroyed. Acquired Lgt. Ion Engine. Acquired 10 matter. K-01 Serf collects debris. EXIT=FOUND: MATERIALS Critical hit (Burn: +37). Beam Rifle destroyed. G-34 Mercenary suffers critical hit (Burn). G-34 Mercenary heat spikes uncontrollably. G-34 Mercenary overheating. G-34 Mercenary heat spikes uncontrollably. G-34 Mercenary overheating. G-34 Mercenary heat damages core (-4). Map ----- +----------------------------------------------------+ | | | | | | | | | | | | | | | | | | | ??????????????????????????????????????? | | ??????????????????????????????????????? | | ???????????????????????######?????????? | | ????????????######????##"!!"##????????? | | ????????????# ##???#""!]""#????????? | | ????????????? #???? #????????? | | ?????????????? #????? #?????????? | | #?????????????# #???###/Y###????????? | | #??????????#### #???# #????????? | | #??????????# ##??# Y ###??????? | | #########??# ## ##?# #??????? | | #??# ## ### #??????? | | ####### #### # ## #??????? | | ??????# # #??????? | | ??????# """ # #??????? | | #?????###### """ # #??????? | | #??????????# """ ## <@ #??????? | | #??????????## #### #??????? | | #???????????## ##??######g###??????? | | ?????????????# #????????# #???###??? | | ?????????????## ##????????# #??# ##?? | | ??????????????####?????????# #? #?? | | ???????????????????????????# ## #?? | | ?????####??????????????????# #?? | | ?##### ###????#####???????## ## #?? | | ## #????# ##???????# #?????#?? | | #????# #####???# #???????? | | ####### ##### #???????? | | #???????? | | ######???????? | | ## ##### ##????????????? | | ### #???#######?????????????? | | # ##?# #???????????????????????? | | # ##??# #???????????????????????? | | #???# #???????????????????????? | | ##???# #???????????????????????? | | ##????# #???????????????????????? | | #?????# #???????????????????????? | | ##?????# #???????????????????????? | | ##??????# #???????????????????????? | | ##???????# #???????????????????????? | +----------------------------------------------------+ Best States ------------- Heat Dissipation 28 Energy Generation 14 Energy Capacity 280 Matter Stores 300 Matter Capacity 300 Sight Range 16 Robot Scan Range 14 Terrain Scan Range 16 Terrain Scan Density 10 Evasion (%) 57 Offensive Hacking 10 Item Schematics ----------------- None Robot Schematics ------------------ None Fabricated ------------ Nothing Alien Tech Used ----------------- None Achievements -------------- Shopping List Challenges ------------ None Game ------ Seed CoolingSchematicField Manual? 0 Play Time 00:36:24 Cumulative 10.1 hours Start 2024.04.08 @ 16:17:55 End 2024.04.08 @ 16:51:50 Sessions 1 Manual Loads 0 Difficulty Rogue Special Mode None Game No. 12 Rogue 12 Adventurer 0 Explorer 0 Win Type - Total 0 Types 0/0/0/0/0/0/0/0/0 Lore% 14 Gallery% 18 Achievement% 14 Wizard Run 0 Options --------- Layout 1 ASCII 0 Keyboard 0 Movement Numpad Keybinds 0 Fullscreen 1 Font 24/Smallcaps Map View 50x40 Zoom Use 0% Tactical HUD 0 Map Filters NONE Filters NONE Steam 1 RUN: 787333f6-eb8a-4bd8-b1fe-38b688e112b4